Cogmind - Beta 13 *** ADVENTURER MODE // 2024.06.25 @ 10:42:44 // Winter2019/RPGLIKE Player: Kurtz Result: Destroyed by D-53 Grenadier with Mini Grenade Launcher Performance ------------- Evolutions (0) 0 Regions Visited (2) 400 Robots Destroyed (20) 100 Value Destroyed (380) 380 Prototype IDs (0) 0 Alien Tech Used (0) 0 Bonus (0) 0 TOTAL SCORE: 880 Bonus ------- None Cogmind --------- Core Integrity 0/600 Matter 237/300 Energy 250/250 System Corruption 0% Temperature Cool (0) Movement Walking (120) Location -10/Mines Parts ------- > --- POWER (1) -------- Ion Engine > --- PROPULSION (2) --- Aluminum Leg Aluminum Leg > --- UTILITY (3) ------ Sensor Array Signal Interpreter ECM Suite > --- WEAPON (2) ------- Assault Rifle Improved Light Cannon > --- INVENTORY (4) ---- Experimental Sensor Array Terrain Scanner Seismic Detector Improved Targeting Computer Peak State ------------ > --- POWER ------------ Ion Engine > --- PROPULSION ------- Aluminum Leg Aluminum Leg > --- UTILITY ---------- Sensor Array Signal Interpreter ECM Suite > --- WEAPON ----------- Assault Rifle Improved Light Cannon > --- INVENTORY -------- Experimental Sensor Array Terrain Scanner Seismic Detector Improved Targeting Computer [Rating: 10] Favorites ----------- Power Ion Engine Engine Ion Engine Propulsion Aluminum Leg Leg Aluminum Leg Utility ECM Suite Device ECM Suite Processor Signal Interpreter Weapon Assault Rifle Energy Gun EM Pulse Gun Ballistic Gun Assault Rifle Ballistic Cannon Improved Light Cannon Build | -11 -10 -10 ------- Run | Yrd Mat Min Slots Evolved 4 | 3 . 1 Power . | . . . Propulsion 1 | 1 . . Utility 2 | 1 . 1 Weapon 1 | 1 . . Parts Attached 12 | 5 6 1 Power 1 | 1 . . Engine 1 | 1 . . Core . | . . . Reactor . | . . . Propulsion 2 | 2 . . Treads . | . . . Leg 2 | 2 . . Wheel . | . . . Hover . | . . . Flight . | . . . Utility 3 | . 2 1 Device 2 | . 1 1 Storage . | . . . Processor 1 | . 1 . Hackware . | . . . Protection . | . . . Artifact . | . . . Weapon 6 | 2 4 . Energy Gun 1 | . 1 . Energy Cannon . | . . . Ballistic Gun 4 | 2 2 . Ballistic Cannon 1 | . 1 . Launcher . | . . . Special Weapon . | . . . Impact Weapon . | . . . Slashing Weapon . | . . . Piercing Weapon . | . . . Special Melee Weapon . | . . . Unidentified Prototypes . | . . . Parts Lost . | . . . Power . | . . . Propulsion . | . . . Utility . | . . . Weapon . | . . . Highest Loss Streak . | . . . To Critical Strikes . | . . . Average Slot Usage (%) 97 | . 96 100 Engine 13 | . 14 12 Leg 27 | . 28 25 Device 14 | . 12 22 Processor 12 | . 11 12 Energy Gun 2 | . 3 . Ballistic Gun 18 | . 20 12 Ballistic Cannon 6 | . 4 12 Naked Turns . | . . . Heaviest Build 14 | 7 13 14 Greatest Support 20 | 20 20 20 Greatest Overweight (x) 2 | 2 . . Average Overweight (x) . | . . . Largest Inventory Capacity 4 | 4 4 4 Average Capacity 3 | 3 4 4 Most Carried 4 | . 4 4 Average Carried 2 | . 2 3 Final Capacity 4 | 4 4 4 Final Carried 4 | . 4 4 Class Distribution -------------------- 100% | Mutant Dominant Class ---------------- Mutant | -10/Materials Mutant | -10/Mines Resources | -11 -10 -10 ----------- Run | Yrd Mat Min Matter Collected 467 | 250 141 76 Remotely . | . . . Salvage Created 379 | . 303 76 Parts 44 | . 30 14 Haulers Intercepted . | . . . Recyclers Shooed . | . . . Parts Field Recycled . | . . . Retrieved Matter . | . . . Parts Self-Destructed . | . . . Prevented . | . . . Kills | -11 -10 -10 ------- Run | Yrd Mat Min Combat Hostiles Destroyed 17 | . 10 7 Guns 9 | . 8 1 Cannons 6 | . . 6 AOE 2 | . 2 . Classes Destroyed 4 | . 3 1 Watcher 3 | . 3 . Swarmer 12 | . 6 6 Grunt 4 | . 4 . Demolisher 1 | . . 1 Best Kill Streak 4 | . 4 3 Combat Bots Only 4 | . 4 3 Max Kills in Single Turn 2 | . 2 1 Gunslinging . | . . . Exploded 2 | . 2 . Melee . | . . . Uniques/NPCs Destroyed . | . . . Combat | -11 -10 -10 -------- Run | Yrd Mat Min Hostile Shots Fired 86 | . 32 54 Missed 24 | . 12 12 Damage Taken 936 | . 158 778 Core 758 | . 123 635 Absorbed by Shields . | . . . Redirected to Core 586 | . 103 483 Ignored by Resistances 330 | . 53 277 Core Remaining (%) 100 | 100 . . Volleys Fired 43 | . 26 17 Largest 2 | . 2 2 Hottest 60 | . 60 59 Shots Fired 86 | . 52 34 Gun 69 | . 52 17 Cannon 17 | . . 17 Launcher . | . . . Special . | . . . Kinetic 73 | . 39 34 Thermal . | . . . Explosive . | . . . Electromagnetic 13 | . 13 . Robot Hit Streak 12 | . 11 12 Robot Miss Streak 3 | . 2 3 Penetration Max . | . . . Secondary Targets 2 | . 2 . Max Gunslinging Chain 1 | . 1 . Shots Hit Robots 60 | . 35 25 Core Hits 27 | . 16 11 Critical Kills . | . . . Critical Parts Destroyed . | . . . Critical Strikes . | . . . Melee Attacks . | . . . Impact . | . . . Slashing . | . . . Piercing . | . . . Sneak Attacks . | . . . Combat Hostiles . | . . . Follow-up Attacks . | . . . Damage Inflicted 959 | . 508 451 Guns 544 | . 395 149 Cannons 302 | . . 302 Explosions 113 | . 113 . Melee . | . . . Ramming . | . . . Kinetic 703 | . 252 451 Thermal 113 | . 113 . Explosive . | . . . Electromagnetic 143 | . 143 . Impact . | . . . Slashing . | . . . Piercing . | . . . Highest Corruption . | . . . Average Corruption . | . . . Corruption Purged . | . . . Corruption Blocked . | . . . Overload Shots . | . . . Overflow Damage . | . . . Projectiles . | . . . Explosions . | . . . Melee . | . . . Knockbacks 4 | . . 4 Impact . | . . . Kinetic 4 | . . 4 Secondary . | . . . Self-Inflicted Damage 23 | . 23 . Shots 1 | . 1 . Rammed . | . . . Targets Rammed . | . . . Kicked . | . . . Crushed . | . . . Highest Temperature 18 | . 18 . Average Temperature 11 | . 11 . Received Heat Transfer 33 | . 33 . Siege Activations . | . . . Robots Corrupted . | . . . Combat Hostiles . | . . . Parts Fried 1 | . 1 . Impact Corruptions . | . . . Robots Melted . | . . . Combat Hostiles . | . . . Parts Melted . | . . . Heat Transferred 150 | . 150 . Parts Sabotaged . | . . . Parts Stolen . | . . . Parts Stripped . | . . . Power Chain Reactions 1 | . 1 . Alert | -11 -10 -10 ------- Run | Yrd Mat Min Peak Influence 201 | . 184 201 Initial . | . . . Average 85 | . 73 145 Maximum Alert Level 1 | . . 1 Low Security (%) 97 | 100 100 88 Level 1 2 | . . 11 Level 2 . | . . . Level 3 . | . . . Level 4 . | . . . Level 5 . | . . . High Security . | . . . Max Security . | . . . Squads Dispatched . | . . . Investigation . | . . . Extermination . | . . . Reinforcement . | . . . Assault . | . . . Garrison . | . . . Intercept . | . . . Searches Triggered . | . . . Construction Impeded . | . . . Haulers Reinforced . | . . . Active Scanning Responses . | . . . Cargo Convoy Interrupts . | . . . Stealth | -11 -10 -10 --------- Run | Yrd Mat Min Distress Signals . | . . . Communications Jammed . | . . . Distress Signals . | . . . Times Spotted 33 | . 20 13 Peak Tracking Total 6 | . 3 6 Tactical Retreats 3 | . 3 . Traps | -11 -10 -10 ------- Run | Yrd Mat Min Traps Triggered . | . . . Indirectly . | . . . Trap Hack Attempts . | . . . Triggered . | . . . Disarmed . | . . . Reprogrammed . | . . . Reused . | . . . Traps Extracted . | . . . Installed . | . . . Triggered . | . . . Machines | -11 -10 -10 ---------- Run | Yrd Mat Min Machines Disabled 1 | . 1 . Max in Single Turn 1 | . 1 . Machines Repaired . | . . . Machines Dismantled . | . . . Machines Sabotaged . | . . . Overloaded Fab Kills . | . . . Hacking | -11 -10 -10 --------- Run | Yrd Mat Min Machines Accessed 4 | . 4 . Terminals 4 | . 4 . Fabricators . | . . . Repair Stations . | . . . Recycling Units . | . . . Scanalyzers . | . . . Garrison Access . | . . . Total Hacks 5 | . 5 . Successful 4 | . 4 . Failed 1 | . 1 . Catastrophic . | . . . Database Lockouts . | . . . Manual . | . . . Terminals 5 | . 5 . Fabricators . | . . . Repair Stations . | . . . Recycling Units . | . . . Scanalyzers . | . . . Garrison Access . | . . . Terminal Hacks 4 | . 4 . Locate Traps 4 | . 4 . Fabricator Hacks . | . . . Repair Station Hacks . | . . . Recycling Unit Hacks . | . . . Scanalyzer . | . . . Garrison Access Hacks . | . . . Unauthorized Hacks . | . . . Terminals . | . . . Fabricators . | . . . Repair Stations . | . . . Recycling Units . | . . . Scanalyzers . | . . . Garrison Access . | . . . Data Cores Recovered . | . . . Used . | . . . Hacking Detections . | . . . Full Trace Events . | . . . Feedback Events . | . . . Feedback Blocked . | . . . Robot Schematics Acquired . | . . . Robots Built . | . . . Authchips . | . . . Time . | . . . Total Robot Build Rating . | . . . Part Schematics Acquired . | . . . Parts Built . | . . . Authchips . | . . . Time . | . . . Total Part Build Rating . | . . . Parts Repaired . | . . . Time . | . . . Parts Recycled . | . . . Recycled Matter . | . . . Retrieved Matter . | . . . Retrieved Components . | . . . Parts Scanalyzed . | . . . Part Schematics Acquired . | . . . Parts Damaged . | . . . Bothacking | -11 -10 -10 ------------ Run | Yrd Mat Min Used RIF Installer . | . . . Robots Hacked . | . . . Non-combat . | . . . Combat . | . . . Robot Hacks Applied . | . . . Relay Couplers Released . | . . . Fabnet Peak Effective % . | . . . Robots Rewired . | . . . Allies Hacked . | . . . Hacks Repelled . | . . . Allies | -11 -10 -10 -------- Run | Yrd Mat Min Total Allies . | . . . Largest Group . | . . . Highest-Rated Group . | . . . Highest-Rated Ally . | . . . Total Orders . | . . . Ally Attacks . | . . . Total Damage . | . . . Kills . | . . . Allies Corrupted . | . . . Allies Melted . | . . . Intel | -11 -10 -10 ------- Run | Yrd Mat Min Robot Analysis Total . | . . . Derelict Logs Recovered . | . . . Drone Launches . | . . . Drone Recoveries . | . . . Exploration | -11 -10 -10 ------------- Run | Yrd Mat Min Turns Passed 1322 | 51 995 276 Spaces Moved 910 | 40 698 172 Core 15 | 15 . . Treads . | . . . Legs 895 | 25 698 172 Wheels . | . . . Hover . | . . . Flight . | . . . Fastest Speed 50 | 50 120 120 Average Speed 119 | 110 120 120 Slowest Speed 150 | 150 120 120 Overloaded Moves . | . . . Propulsion Burnouts . | . . . Robots Hopped . | . . . Cave-ins Triggered . | . . . Exploration Rate (%) 49 | 4 99 44 Regions Visited 2 Branch Regions 1 Pre-discovered Areas . | . . . Known Exits Taken 1 | . 1 . Unknown Exits Taken 1 | 1 . . Scrap Searched . | . . . Spaces Dug . | . . . Terrain Destroyed 4 | . 3 1 Melee . | . . . Projectile 1 | . . 1 AOE 3 | . 3 . Terrain Rammed . | . . . Walls Destroyed . | . . . Machines Disabled . | . . . Actions | -11 -10 -10 --------- Run | Yrd Mat Min Total 1057 | 44 805 208 Wait 74 | . 59 15 Move 908 | 39 697 172 Hop . | . . . Pick Up 7 | . 6 1 Fast Attach 8 | 5 3 . Attach 2 | . 1 1 Detach . | . . . Swap 2 | . 2 . Drop 4 | . 4 . Fire 43 | . 26 17 Melee . | . . . Ram . | . . . Kick . | . . . Crush . | . . . Escape Stasis . | . . . Rewire . | . . . Trap . | . . . Miscellaneous 9 | . 7 2 Route ------- -11/Scrapyard -10/Materials (discovered 4 exits: *Mat x3 / *Min) -10/Mines History --------- Turn | Location | Event 2 | -11/Scrapyard | Discovered new exit (range 16) 13 | -11/Scrapyard | Upgraded with Propulsion slot (x1) 13 | -11/Scrapyard | Upgraded with Utility slot (x1) 13 | -11/Scrapyard | Upgraded with Weapon slot (x1) 52 | -11/Scrapyard | Entered Materials 128 | -10/Materials | Discovered new exit (range 9) 212 | -10/Materials | Discovered new exit (range 10) 236 | -10/Materials | Identified exit to Materials 301 | -10/Materials | Build established: Mutant 590 | -10/Materials | Discovered exit to Materials (range 10) 758 | -10/Materials | Discovered exit to Materials (range 5) 1046 | -10/Materials | Identified exit to Mines 1047 | -10/Materials | Entered Mines 1049 | -10/Mines | Reached level 2 1102 | -10/Mines | Upgraded with Utility slot (x1) 1264 | -10/Mines | Found a damaged Exp. Sensor Array with a note attached 1265 | -10/Mines | Assembled infested the area 1266 | -10/Mines | Found Prototype Device 1292 | -10/Mines | Core integrity fell below 50% 1311 | -10/Mines | Core integrity fell below 20% 1323 | -10/Mines | Destroyed by D-53 Grenadier with Mini Grenade Launcher Last Messages --------------- 01282_ U-05 Engineer destroyed. 01292_ D-53 Grenadier destroyed. 01295_ D-53 Grenadier knocked back. 01297_ The unstable cave ceiling collapses. 01297_ as-05932 destroyed. 01300_ U-05 Engineer lays Concrete. 01302_ The unstable cave ceiling collapses. 01303_ Laser Drill disabled. 01305_ as-02615 destroyed. 01305_ as-53097 destroyed. 01305_ as-91876 destroyed. 01311_ as-76319 destroyed. 01312_ The unstable cave ceiling collapses. 01314_ Used Protomatter to restore core integrity (+12, depleted) 01314_ U-05 Engineer builds a Wall. 01315_ The unstable cave ceiling collapses. 01318_ D-53 Grenadier knocked back. 01319_ U-05 Engineer builds a Wall. 01320_ The unstable cave ceiling collapses. 01321_ D-53 Grenadier knocked back. Map ----- +----------------------------------------------------+ | ?????????????????????????????????????????? | | ?????????????????????????????????????????? | | ??????????????????????????????????????????# | | ????????????????????????????????????#??????# | | ????????????????????????#?????????? #???????# | | ????????????????????????# ??????### #???????# | | ????????????????????????# ###### #??????## | | ????????????????????????? # #?????## | | ?????????????????????????? #??#### | | ???????????????????????????# #??? | | ???????????????????????????# #???????# | | ???????????????????????????## ##???????# | | ????????????????????????????# % ##?????????# | | ???????????????????????????? %% #??????????## | | ??????????????????????????## #???????????### | | ?????????????????????????## #?????????????# | | ????????????????????????## # ########???????# | | ???????????????????????## # ## #???????# | | ???????????????????????# ## ##??###### | | ???????????????????????# a### #???# | | ??????????????????????## # u #???# #### | | ???????????????????#### !##??# #??? | | ???????????????????# %#### #??? | | ?????????????????### d x=%" # ###? | | ?????????????????# " % #? | | ?????????????????## @ "%" #? | | ?????????????????# """ ### #? | | ?????????????????# ##?# #? | | ?????????????? # ### ##?# #? | | ??????????? ## ########?# #?# #? | | ???????? #??###????????# #?# ## | | ???????? #### ??????????????# ##?# | | ???????? ?????## ??????????????## ##??# | | ????????????????## ???????????????####???# ### | | ?????????????????# ??????????????????????# #?? | | ?????????????????# ??????????????????????? ??? | | ?????????????????## ?????????????????????? ??? | | ??????????????????##?????????????????????# ??? | | ??????????????????????????????????????????# ??? | | ?????????????????????????????????????????? ??? | | ?????????????????????????????????????????? ??? | | ??????????????????????????????????????????##???? | | ???????????????????????????????????????????????? | | ???????????????????????????????????????????????? | | ???????????????????????????????????????????????? | | ???????????????????????????????????????????????? | | ???????????????????????????????????????????????? | | ???????????????????????????????????????????????? | | ???????????????????????????????????????????????? | | ???????????????????????????????????????????????? | +----------------------------------------------------+ Best States ------------- Heat Dissipation 25 Energy Generation 10 Energy Capacity 250 Matter Stores 300 Matter Capacity 300 Sight Range 16 Robot Scan Range 16 Terrain Scan Density 10 ECM Strength 1 Resistance: KI 25 Resistance: TH 25 Resistance: EX 25 Resistance: EM 20 Resistance: I 20 Resistance: S 20 Resistance: P 20 Evasion (%) 55 Offensive Hacking 15 Item Schematics ----------------- None Robot Schematics ------------------ None Fabricated ------------ Nothing Alien Tech Used ----------------- None Achievements -------------- None Challenges ------------ None RPGLIKE | -11 -10 -10 --------- Run | Yrd Mat Min Levels Raised 1 | . . 1 XP Earned 6650 | 4000 1300 1350 XP Spent 5500 | 4000 . 1500 Upgrades 13 | 7 . 6 Propulsion Slot 1 | 1 . . Utility Slot 2 | 1 . 1 Weapon Slot 1 | 1 . . Inventory Capacity 4 | 4 . . Sensor Range 1 | . . 1 Hack Attack % 1 | . . 1 KI Resistance % 1 | . . 1 TH Resistance % 1 | . . 1 EX Resistance % 1 | . . 1 Protomatter Created 142 | . 94 48 Integrity Restored 150 | . 123 27 Core 150 | . 123 27 Protomatter Decayed 94 | . 51 43 Game ------ Seed ArmorBottomlessPlating Manual? 0 Play Time 00:17:32 Cumulative 462.5 hours Start 2024.06.25 @ 10:26:09 End 2024.06.25 @ 10:42:44 Sessions 1 Manual Loads 0 Difficulty Adventurer Special Mode Winter2019/RPGLIKE Game No. 47 Rogue 1 Adventurer 44 Explorer 2 Win Type - Total 3 Types 2/0/0/1/0/0/0/0/0 Lore% 53 Gallery% 44 Achievement% 58 Wizard Run 0 Options --------- Layout 1 ASCII 0 Keyboard 0 Movement Numpad Keybinds 0 Fullscreen 1 Font 32/SmallcapsGlow Map View 77x35 Zoom Use 0% Tactical HUD 1 Map Filters NONE Filters NONE Steam 1 RUN: 137de268-1c98-4791-8508-a2f377aa83e5